bitfinex/quotes_SOLUSD_20220218
["timestamp","ask_amount","ask_price","bid_price","bid_amount"]
[1645194320706,5.32,94.008,93.93,15.972]
[1645194320908,106.6,94.006,93.93,15.972]
[1645194321108,5.32,94.005,93.93,15.972]
[1645194321317,5.32,94.006,93.93,15.972]
[1645194321720,111.92,94.006,93.93,15.972]
[1645194324320,106.6,93.999,93.928,1.55651491]
[1645194324920,5.321,93.998,93.928,1.55651491]
[1645194325327,106.6,93.989,93.928,1.55651491]
[1645194325522,5.321,93.988,93.928,1.55651491]
[1645194325923,106.6,93.987,93.928,1.55651491]
[1645194326125,106.6,93.985,93.928,1.55651491]
[1645194326325,106.6,93.969,93.928,1.55651491]
[1645194326524,106.6,93.967,93.928,1.55651491]
[1645194326925,17.68568856,93.968,93.928,1.55651491]
[1645194327929,106.6,93.967,93.926,6.94975769]
[1645194329548,106.6,93.967,93.926,1.62975769]
[1645194329747,106.6,93.959,93.926,1.62975769]
[1645194330248,5.322,93.958,93.926,1.62975769]
[1645194331048,106.6,93.959,93.926,1.62975769]
[1645194331451,15.9818,93.95,93.926,1.62975769]
[1645194332155,106.6,93.949,93.926,1.62975769]
[1645194332578,5.322,93.948,93.87,15.9826]
[1645194333180,31.3818,93.95,93.871,56.31199804]
[1645194333579,31.3818,93.95,93.88,15.9811]
[1645194333882,15.4,93.95,93.881,5.323]
[1645194334380,2.97986611,93.975,93.883,170.25]
[1645194334579,2.97986611,93.989,93.884,5.323]
[1645194334780,15.4,94.0,93.884,5.323]
[1645194334781,2.97986611,93.992,93.885,106.6]
[1645194335080,54.72496797,93.991,93.887,106.6]
[1645194335481,15.9753,93.99,93.89,15.9792]
[1645194335979,15.9753,93.99,93.891,2.6293831]
[1645194336181,18.95516611,93.99,93.891,2.6293831]
[1645194336780,15.9753,93.99,93.891,2.6293831]
[1645194337381,15.9753,93.99,93.92,15.9743]
[1645194337583,15.9753,93.99,93.921,49.06130983]
[1645194339987,2.97986611,93.994,93.921,49.06130983]
[1645194340387,2.97986611,93.994,93.93,15.9725]
[1645194341188,2.97986611,93.995,93.93,15.9725]
[1645194341996,2.97986611,94.0,93.93,15.9725]
[1645194342189,2.97986611,94.006,93.93,15.9725]
[1645194342588,2.97986611,94.008,93.93,15.9725]
[1645194342789,2.97986611,94.012,93.931,63.65]
[1645194342996,2.97986611,94.012,93.951,42.45207102]
[1645194343190,2.97986611,94.014,93.951,42.45207102]
[1645194343391,23.06818489,94.012,93.951,42.45207102]
[1645194343594,2.97986611,94.006,93.951,42.45207102]
[1645194343991,2.97986611,94.005,93.923,1.63110571]
[1645194344190,2.97986611,94.002,93.923,1.63110571]
[1645194344392,2.97986611,94.002,93.93,15.9724]
[1645194344591,2.97986611,94.003,93.93,15.9724]
[1645194344791,106.6,94.009,93.93,15.9724]
[1645194344792,2.97986611,94.001,93.93,15.9724]
[1645194344991,2.97986611,94.001,93.932,63.65]
[1645194345191,2.97986611,94.013,93.933,175.571]
[1645194345394,2.97986611,94.017,93.933,175.571]
[1645194345593,2.97986611,94.022,93.933,175.571]
[1645194345795,42.24472895,94.022,93.934,43.29914734]
[1645194345991,42.24472895,94.022,93.935,5.32]
[1645194346195,2.97986611,94.023,93.935,5.32]
[1645194346391,3.02385911,94.024,93.95,15.9675]
[1645194346591,0.043993,94.024,93.951,5.319]
[1645194346994,0.043993,94.024,93.935,5.319]
[1645194347392,0.043993,94.024,93.96,15.9671]
[1645194347592,0.043993,94.024,93.961,5.319]
[1645194348092,0.043993,94.024,93.954,5.319]
[1645194348295,0.043993,94.024,93.955,40.38555052]
[1645194348492,0.043993,94.024,93.956,5.319]
[1645194348696,0.043993,94.024,93.96,15.9675]
[1645194351193,5.319,94.023,93.96,15.9675]
[1645194351402,0.043993,94.024,93.956,5.319]
[1645194351594,5.319,94.023,93.956,5.319]
[1645194351795,18.37986611,94.02,93.956,5.319]
[1645194351995,5.319,94.019,93.956,5.319]
[1645194352394,111.919,94.019,93.956,5.319]
[1645194352596,2.97986611,94.017,93.962,1.62531042]
[1645194352794,5.319,94.016,93.962,1.62531042]
[1645194353900,15.9719,94.01,93.962,1.62531042]
[1645194354098,31.3719,94.01,93.962,1.62531042]
[1645194355197,31.3719,94.01,93.963,46.3177476]
[1645194355996,31.3719,94.01,93.962,1.62531042]
[1645194357600,5.319,94.009,93.962,1.62531042]
[1645194357801,31.3719,94.01,93.962,1.62531042]
[1645194358101,106.6,94.009,93.956,6.94401336]
[1645194358304,31.3719,94.01,93.956,6.94401336]
[1645194359125,5.32,94.009,93.956,1.62501336]
[1645194359728,2.97986611,94.008,93.956,1.62501336]
[1645194359927,5.32,94.007,93.956,1.62501336]
[1645194360127,8.29986611,94.008,93.956,1.62501336]
[1645194360528,2.97986611,94.007,93.956,1.62501336]
[1645194360729,5.32,94.006,93.956,1.62501336]
[1645194360928,5.32,94.007,93.956,1.62501336]
[1645194361128,5.32,94.007,93.956,43.45744967]
[1645194361332,2.97986611,94.008,93.956,43.45744967]
[1645194361532,31.3719,94.01,93.956,43.45744967]
[1645194362531,31.3719,94.01,93.956,41.83243631]
[1645194362832,15.4,94.01,93.956,41.83243631]
[1645194363031,2.97986611,94.011,93.956,41.83243631]
[1645194363632,2.97986611,94.017,93.956,41.83243631]
[1645194363832,2.97986611,94.02,93.956,41.83243631]
[1645194364034,160.44074737,94.026,93.956,41.83243631]
[1645194364035,2.97986611,94.017,93.956,41.83243631]
[1645194364233,2.97986611,94.015,93.921,63.65]
[1645194364435,2.97986611,94.013,93.94,15.9708]
[1645194364833,2.97986611,94.011,93.94,15.9708]
[1645194365034,2.97986611,94.009,93.94,15.9708]
[1645194365232,8.96954127,94.008,93.941,40.26294698]
[1645194365834,2.97986611,94.007,93.941,40.26294698]
[1645194366037,2.97986611,94.005,93.941,40.26294698]
[1645194366235,2.97986611,94.004,93.941,40.26294698]
[1645194366436,2.97986611,93.999,93.941,40.26294698]
[1645194366835,2.97986611,93.999,93.93,15.9724]
[1645194367035,2.97986611,93.999,93.91,53.237]
[1645194367036,2.97986611,93.997,93.91,53.237]
[1645194367238,2.97986611,93.988,93.899,2.6293831]
[1645194367439,2.97986611,93.982,93.893,63.65]
[1645194367637,5.322,93.981,93.91,15.976]
[1645194367841,106.6,93.979,93.958,1.62591448]
[1645194368037,80.0,93.979,93.958,1.448e-05]
[1645194368237,15.4,93.98,93.958,1.448e-05]
[1645194368637,106.6,93.979,93.958,1.448e-05]
[1645194369841,31.3781,93.98,93.958,1.448e-05]
[1645194370040,36.6981,93.98,93.958,1.448e-05]
[1645194370444,31.3781,93.98,93.958,1.448e-05]
[1645194372543,106.6,93.979,93.958,1.448e-05]
[1645194372743,15.9787,93.97,93.901,53.99989278]
[1645194373147,106.6,93.969,93.901,1.42237989]
[1645194373345,5.322,93.968,93.901,1.42237989]
[1645194373546,2.97986611,93.965,93.901,1.42237989]
[1645194373745,2.97986611,93.959,93.901,1.42237989]
[1645194373945,106.6,93.949,93.901,1.42237989]
[1645194374145,106.6,93.939,93.901,1.42237989]
[1645194374347,106.6,93.929,93.901,1.42237989]
[1645194374647,106.6,93.927,93.901,1.42237989]
[1645194374844,5.324,93.926,93.901,1.42237989]
[1645194375445,51.59628126,93.928,93.901,1.42237989]
[1645194375446,5.324,93.927,93.901,1.42237989]
[1645194375645,111.924,93.927,93.901,1.42237989]
[1645194375844,5.324,93.927,93.901,1.42237989]
[1645194376253,15.4,93.95,93.901,1.42237989]
[1645194377049,40.48467968,93.949,93.901,1.42237989]
[1645194377745,31.3817,93.95,93.901,1.42237989]
[1645194377945,31.3817,93.95,93.9,53.52422723]
[1645194378545,31.3817,93.95,93.9,1.43085192]
[1645194379649,31.3817,93.95,93.901,41.94176229]
[1645194380850,15.4,93.95,93.901,41.94176229]
[1645194381250,48.98239311,93.958,93.901,41.94176229]
[1645194381651,15.4,93.97,93.901,41.94176229]
[1645194381949,31.3785,93.97,93.901,41.94176229]
[1645194382550,47.20884446,93.969,93.902,1.25351314]
[1645194385157,15.4,93.97,93.902,1.25351314]
[1645194385456,15.4,93.97,93.91,15.9761]
[1645194385660,5.322,93.991,93.912,63.65]
[1645194385856,2.97986611,94.002,93.913,68.971]
[1645194386154,15.4,94.02,93.913,68.971]
[1645194386155,53.26049205,94.001,93.913,68.971]
[1645194386359,53.26049205,94.001,93.914,2.6293831]
[1645194386555,53.26049205,94.001,93.916,48.05153239]
[1645194386756,53.26049205,94.001,93.917,5.321]
[1645194387367,53.26049205,94.001,93.93,15.9726]
[1645194387556,53.26049205,94.001,93.932,55.05154245]
[1645194387757,53.26049205,94.001,93.933,5.321]
[1645194387959,106.6,94.0,93.933,5.321]
[1645194388158,122.5733,94.0,93.933,5.321]
[1645194388357,106.6,93.998,93.897,5.321]
[1645194388558,106.6,93.996,93.91,15.9757]
[1645194388760,2.97986611,93.994,93.91,15.9757]
[1645194388956,106.6,93.989,93.91,15.9757]
[1645194389156,106.6,93.989,93.911,44.36665944]
[1645194389357,5.321,93.988,93.911,39.04465944]
[1645194389757,106.6,93.989,93.912,5.322]
[1645194390059,5.321,93.988,93.911,39.04465944]
[1645194390858,116.14979659,93.979,93.911,39.04465944]
[1645194391058,9.54979659,93.979,93.911,39.04465944]
[1645194391870,15.5803,93.989,93.912,5.322]
[1645194392059,15.9748,93.99,93.912,5.322]
[1645194392265,16.0551,93.996,93.913,63.65]
[1645194392462,0.71753666,93.993,93.914,5.321]
[1645194392882,50.13235736,93.992,93.914,5.321]
[1645194393483,50.13235736,93.992,93.92,15.974]
[1645194393684,50.13235736,93.992,93.921,5.321]
[1645194393883,0.71753666,93.993,93.921,5.321]
[1645194394285,0.71753666,93.993,93.913,5.321]
[1645194394888,54.27791847,93.992,93.913,5.321]
[1645194395288,54.27791847,93.992,93.914,2.6293831]
[1645194395487,54.27791847,93.992,93.931,44.88612883]
[1645194395687,54.27791847,93.992,93.932,5.321]
[1645194397691,106.6,93.991,93.932,5.321]
[1645194397894,106.6,93.989,93.902,5.321]
[1645194398190,2.97986611,93.985,93.881,5.322]
[1645194398391,106.6,93.979,93.881,5.322]
[1645194398593,15.4,93.98,93.882,50.02013582]
[1645194398791,115.13237017,93.977,93.883,5.323]
[1645194398993,6.04371481,93.976,93.9,15.9776]
[1645194399193,6.04371481,93.976,93.901,59.64006433]
[1645194400295,115.13237017,93.977,93.901,59.64006433]
[1645194400694,6.04392487,93.976,93.901,59.64006433]
[1645194402494,8.53237017,93.977,93.901,59.64006433]
[1645194402793,31.3781,93.98,93.91,15.976]
[1645194402794,15.4,93.98,93.91,15.976]
[1645194402995,5.322,93.996,93.911,5.322]
[1645194403194,106.6,93.997,93.911,5.322]
[1645194403597,161.53733654,93.997,93.911,5.322]
[1645194404095,54.93733654,93.997,93.911,5.322]
[1645194404497,54.93733654,93.997,93.921,43.11515389]
[1645194404695,54.93733654,93.997,93.922,5.321]
[1645194405500,161.53733654,93.997,93.922,5.321]
[1645194405901,6.04243578,93.996,93.922,5.321]
[1645194406099,15.9749,93.99,93.921,48.43615389]
[1645194407502,106.6,93.989,93.91,15.9759]
[1645194407701,106.6,93.979,93.913,1.25186284]
[1645194407903,5.322,93.978,93.913,1.25186284]
[1645194408104,106.6,93.976,93.913,1.25186284]
[1645194408299,11.36507051,93.975,93.913,1.25186284]
[1645194408499,120.51602261,93.974,93.913,1.25186284]
[1645194408703,11.36507051,93.973,93.913,1.25186284]
[1645194408901,6.04307051,93.972,93.913,1.25186284]
[1645194409501,15.9784,93.97,93.913,1.25186284]
[1645194411105,7.8729521,93.974,93.913,1.25186284]
[1645194411326,106.6,93.973,93.913,1.25186284]
[1645194411507,106.6,93.969,93.913,1.25186284]
[1645194411705,2.97986611,93.965,93.913,1.25186284]
[1645194411905,2.97986611,93.962,93.913,1.25186284]
[1645194412106,106.6,93.949,93.913,1.25186284]
[1645194412310,106.6,93.939,93.913,1.25186284]
[1645194412509,5.323,93.938,93.86,0.1237046]
[1645194412708,106.6,93.929,93.86,0.1237046]
[1645194412910,5.325,93.928,93.86,0.1237046]
[1645194413313,15.9865,93.92,93.86,0.1237046]
[1645194413510,35.55669021,93.92,93.86,0.1237046]
[1645194413708,15.9865,93.92,93.86,0.1237046]
[1645194413910,106.6,93.929,93.86,0.1237046]
[1645194415812,106.6,93.929,93.86,16.1083046]
[1645194416210,106.6,93.929,93.86,0.1237046]
[1645194416615,106.6,93.919,93.86,0.1237046]
[1645194416810,106.6,93.917,93.86,0.1237046]
[1645194417012,5.325,93.916,93.86,0.1237046]
[1645194417623,15.9901,93.91,93.86,0.1237046]
[1645194417915,31.3901,93.91,93.862,1.25945018]
[1645194419432,106.6,93.927,93.862,1.25945018]
[1645194419631,106.6,93.927,93.863,5.325]
[1645194420235,15.9859,93.93,93.863,5.325]
[1645194421633,106.6,93.929,93.863,5.325]
[1645194422433,106.6,93.919,93.862,1.25945018]
[1645194422635,106.6,93.917,93.862,1.25945018]
[1645194422834,1.01935308,93.909,93.86,0.1237046]
[1645194425335,15.9898,93.9,93.86,0.1237046]
[1645194425835,1.01935308,93.909,93.86,0.1237046]
[1645194426236,1.01935308,93.909,93.861,5.325]
[1645194426436,1.01935308,93.909,93.86,0.1237046]
[1645194427838,1.02024797,93.918,93.86,0.1237046]
[1645194428442,15.9878,93.91,93.86,0.1237046]
[1645194431846,68.81792795,93.91,93.86,0.1237046]
[1645194432847,15.9878,93.91,93.862,0.94689997]
[1645194433047,5.325,93.927,93.862,0.94689997]
[1645194433249,108.09811791,93.938,93.863,5.325]
[1645194433651,106.6,93.938,93.863,5.325]
[1645194433848,46.43940444,93.937,93.863,5.325]
[1645194434451,15.9846,93.93,93.863,5.325]
[1645194435753,106.6,93.929,93.862,0.94689997]
[1645194435951,106.6,93.919,93.862,0.94689997]
[1645194436152,1.49811791,93.908,93.862,0.94689997]
[1645194436349,1.49811791,93.902,93.862,0.94689997]
[1645194436549,5.325,93.907,93.862,0.94689997]
[1645194436550,106.6,93.9,93.862,0.94689997]
[1645194436749,5.325,93.899,93.862,0.94689997]
[1645194436952,15.9926,93.89,93.862,0.94689997]
[1645194437551,15.9926,93.89,93.86,1.07015803]
[1645194437950,1.49811791,93.906,93.86,1.07015803]
[1645194438150,106.6,93.908,93.86,1.07015803]
[1645194438349,17.48731791,93.91,93.86,1.07015803]
[1645194438550,15.9892,93.91,93.86,1.07015803]
[1645194438950,106.6,93.909,93.86,1.07015803]
[1645194439150,15.9913,93.9,93.86,1.07015803]
[1645194439350,5.325,93.899,93.86,1.07015803]
[1645194439549,15.9913,93.9,93.86,1.07015803]
[1645194439950,106.6,93.899,93.86,1.07015803]
[1645194440149,106.6,93.897,93.86,1.07015803]
[1645194440351,106.6,93.889,93.86,5.803e-05]
[1645194440551,106.6,93.879,93.86,5.803e-05]
[1645194441352,15.9962,93.87,93.86,5.803e-05]
[1645194441554,0.55109692,93.869,93.86,5.803e-05]
[1645194442652,15.9977,93.86,93.807,51.28244075]
[1645194444159,106.6,93.859,93.807,0.94689997]
[1645194444557,15.9985,93.85,93.807,0.94689997]
[1645194445156,127.95496854,93.849,93.807,0.94689997]
[1645194445758,106.6,93.839,93.807,0.94689997]
[1645194445958,15.9997,93.84,93.807,0.94689997]
[1645194447359,106.6,93.839,93.807,0.94689997]
[1645194447759,16.0016,93.83,93.771,0.83649416]
[1645194447959,5.329,93.848,93.771,0.83649416]
[1645194448362,5.329,93.848,93.772,44.54174406]
[1645194448960,111.929,93.848,93.772,44.54174406]
[1645194449460,16.0,93.84,93.772,44.54174406]
[1645194454163,16.0,93.84,93.773,5.33]
[1645194456167,106.6,93.839,93.773,5.33]
[1645194456364,16.0014,93.83,93.773,5.33]
[1645194456566,16.0014,93.83,93.772,44.54174406]
[1645194456764,106.6,93.829,93.772,44.54174406]
[1645194457865,106.6,93.829,93.774,0.61918682]
[1645194458467,16.0049,93.82,93.774,0.61918682]
[1645194459271,15.4,93.85,93.774,0.61918682]
[1645194459472,16.0001,93.84,93.775,5.329]
[1645194460490,31.398,93.86,93.78,15.998]
[1645194460691,1.49811791,93.869,93.781,111.929]
[1645194460890,53.3266,93.88,93.781,7.9583831]
[1645194461289,106.6,93.879,93.782,2.6293831]
[1645194461491,51.96603059,93.878,93.783,5.328]
[1645194461688,158.56603059,93.878,93.783,5.328]
[1645194461890,158.56603059,93.878,93.784,2.6293831]
[1645194462093,158.56603059,93.878,93.785,5.328]
[1645194462291,106.6,93.869,93.79,15.9961]
[1645194462492,5.328,93.868,93.776,0.61888856]
[1645194462794,106.6,93.859,93.776,0.61888856]
[1645194462993,1.49811791,93.857,93.776,0.61888856]
[1645194463194,5.329,93.856,93.776,0.61888856]
[1645194463396,106.6,93.839,93.776,0.61888856]
[1645194463595,106.6,93.829,93.776,0.61888856]
[1645194463794,5.33,93.828,93.776,0.61888856]
[1645194463998,106.6,93.827,93.776,0.61888856]
[1645194464195,5.33,93.826,93.776,0.61888856]
[1645194464399,106.6,93.827,93.777,43.39823985]
[1645194465299,16.005,93.82,93.777,43.39823985]
[1645194467500,106.6,93.819,93.776,0.61888856]
[1645194467701,106.6,93.819,93.778,0.61859032]
[1645194468503,106.6,93.809,93.778,0.61859032]
[1645194469308,106.6,93.809,93.709,5.33]
[1645194469309,7.9593831,93.808,93.709,5.33]
[1645194469504,106.6,93.799,93.71,54.98282698]
[1645194469706,16.0073,93.8,93.71,54.98282698]
[1645194469707,106.6,93.789,93.71,54.98282698]
[1645194469903,106.6,93.787,93.675,5.331]
[1645194470105,106.6,93.785,93.674,5.332]
[1645194470308,106.6,93.779,93.747,0.0068868]
[1645194470506,106.6,93.769,93.747,0.0068868]
[1645194470706,106.6,93.759,93.747,0.0068868]
[1645194470908,5.333,93.758,93.747,0.0068868]
[1645194471107,0.55109692,93.757,93.747,0.0068868]
[1645194472409,31.4103,93.79,93.748,2.48110304]
[1645194472608,2.97986611,93.833,93.747,0.0068868]
[1645194472609,1.49811791,93.816,93.78,0.61829209]
[1645194472809,1.49811791,93.823,93.78,0.61829209]
[1645194473009,5.33,93.815,93.78,0.61829209]
[1645194473209,1.49811791,93.827,93.78,0.61829209]
[1645194473410,106.6,93.819,93.78,0.61829209]
[1645194474011,106.6,93.819,93.747,0.0068868]
[1645194474012,106.6,93.817,93.747,0.0068868]
[1645194474213,1.49811791,93.806,93.747,0.0068868]
[1645194474411,106.6,93.804,93.747,0.0068868]
[1645194474613,1.49811791,93.802,93.747,0.0068868]
[1645194474815,5.331,93.801,93.747,0.0068868]
[1645194475012,106.6,93.789,93.747,0.0068868]
[1645194475312,106.6,93.787,93.747,0.0068868]
[1645194475914,16.012,93.79,93.747,0.0068868]
[1645194476112,16.012,93.79,93.715,5.332]
[1645194476514,106.6,93.789,93.715,5.332]
[1645194476713,106.6,93.789,93.704,5.333]
[1645194476912,15.4,93.8,93.716,2.6293831]
[1645194477114,106.6,93.808,93.72,16.0084]
[1645194477316,5.332,93.829,93.723,63.65]
[1645194477517,1.49811791,93.83,93.732,106.6]
[1645194477711,15.4,93.84,93.743,63.65]
[1645194477913,15.4,93.84,93.744,58.97403846]
[1645194478312,15.4,93.84,93.745,2.6293831]
[1645194478513,15.4,93.84,93.746,5.33]
[1645194478713,7.9593831,93.839,93.746,5.33]
[1645194478916,7.9593831,93.839,93.745,5.33]
[1645194479115,109.2293831,93.838,93.745,5.33]
[1645194479314,5.33,93.837,93.745,5.33]
[1645194479517,106.6,93.829,93.745,5.33]
[1645194479717,106.6,93.827,93.744,53.64403846]
[1645194480018,5.331,93.826,93.744,53.64403846]
[1645194480215,106.6,93.825,93.744,53.64403846]
[1645194480418,5.331,93.824,93.744,53.64403846]
[1645194480615,106.6,93.819,93.744,53.64403846]
[1645194480818,15.4,93.82,93.745,5.331]
[1645194481116,106.6,93.819,93.745,7.9603831]
[1645194481317,106.6,93.819,93.745,5.331]
[1645194481817,106.6,93.819,93.744,53.64403846]
[1645194482019,106.6,93.817,93.744,53.64403846]
[1645194483215,5.331,93.816,93.744,53.64403846]
[1645194483416,5.331,93.816,93.73,16.0066]
[1645194483822,2.6293831,93.815,93.73,16.0066]
[1645194484020,106.6,93.813,93.73,16.0066]
[1645194484219,106.6,93.811,93.73,16.0066]
[1645194484420,106.6,93.809,93.731,48.76724869]
[1645194484623,5.332,93.826,93.74,16.005]
[1645194484820,15.4,93.85,93.741,5.331]
[1645194484821,1.49811791,93.849,93.741,5.331]
[1645194485020,1.49811791,93.854,93.734,106.6]
[1645194485223,5.331,93.853,93.741,2.6293831]
[1645194485421,49.46383443,93.843,93.742,5.331]
[1645194485622,1.49811791,93.854,93.742,5.331]
[1645194485825,1.49811791,93.856,93.743,2.6293831]
[1645194486024,1.49811791,93.854,93.744,5.331]
[1645194486225,15.4,93.86,93.744,5.331]
[1645194486226,106.6,93.852,93.744,5.331]
[1645194486429,1.22195187,93.838,93.76,16.0014]
[1645194486624,1.22195187,93.838,93.74,53.3341]
[1645194486625,1.22195187,93.838,93.761,56.41081619]
[1645194486828,1.22195187,93.838,93.761,53.71019929]
[1645194487025,1.22195187,93.838,93.762,5.33]
[1645194487226,1.22195187,93.838,93.761,51.08081619]
[1645194488325,1.49811791,93.835,93.724,5.33]
[1645194488526,1.49811791,93.835,93.721,63.65]
[1645194488527,106.6,93.829,93.722,5.331]
[1645194488730,5.331,93.828,93.722,5.331]
[1645194488927,5.331,93.828,93.721,5.331]
[1645194489127,5.331,93.828,93.722,49.54080626]
[1645194489328,5.331,93.828,93.723,7.9603831]
[1645194489729,5.331,93.828,93.723,5.331]
[1645194489928,5.331,93.828,93.722,49.54080626]
[1645194489929,106.6,93.817,93.722,49.54080626]
[1645194490129,106.6,93.809,93.722,49.54080626]
[1645194490334,106.6,93.807,93.722,49.54080626]
[1645194490529,106.6,93.805,93.722,49.54080626]
[1645194490730,2.6293831,93.808,93.722,49.54080626]
[1645194490930,106.6,93.809,93.722,49.54080626]
[1645194491130,106.6,93.799,93.722,49.54080626]
[1645194491331,106.6,93.797,93.722,49.54080626]
[1645194491538,106.6,93.795,93.7,5.332]
[1645194491734,106.6,93.793,93.702,5.333]
[1645194492133,106.6,93.791,93.702,5.333]
[1645194492335,5.333,93.792,93.702,5.333]
[1645194492336,106.6,93.789,93.702,5.333]
[1645194492533,106.6,93.789,93.703,52.39946379]
[1645194492735,106.6,93.789,93.723,0.51897456]
[1645194493435,5.333,93.797,93.723,0.51897456]
[1645194493636,1.49811791,93.805,93.724,7.9613831]
[1645194494075,1.49811791,93.818,93.725,2.6293831]
[1645194494271,106.6,93.816,93.726,45.99753909]
[1645194494476,106.6,93.816,93.73,16.0068]
[1645194494670,108.09811791,93.814,93.73,16.0068]
[1645194494870,108.09811791,93.814,93.726,40.66653909]
[1645194494871,108.09811791,93.812,93.726,40.66653909]
[1645194495070,1.49811791,93.802,93.726,40.66653909]
[1645194495271,106.6,93.798,93.726,40.66653909]
[1645194495574,106.6,93.789,93.723,0.51897456]
[1645194495770,106.6,93.787,93.723,0.51897456]
[1645194495971,18.100715,93.799,93.723,0.51897456]
[1645194495972,108.09811791,93.785,93.723,0.51897456]
[1645194496171,1.49811791,93.781,93.723,0.51897456]
[1645194496371,106.6,93.783,93.723,0.51897456]
[1645194496574,6.83111791,93.789,93.723,0.51897456]
[1645194496575,60.92963324,93.78,93.723,0.51897456]
[1645194496771,15.4,93.79,93.723,0.51897456]
[1645194497572,15.4,93.79,93.702,53.78660971]
[1645194497775,106.6,93.789,93.702,53.78660971]
[1645194497972,1.49811791,93.795,93.702,53.78660971]
[1645194498174,1.49811791,93.801,93.703,2.6293831]
[1645194498373,1.49811791,93.8,93.704,5.333]
[1645194498773,50.51707241,93.799,93.705,2.6293831]
[1645194498973,106.6,93.798,93.706,5.333]
[1645194499173,106.6,93.798,93.703,5.333]
[1645194499372,106.6,93.798,93.71,16.0095]
[1645194499574,106.6,93.798,93.711,5.333]
[1645194500577,106.6,93.789,93.702,48.45360971]
[1645194500978,106.6,93.789,93.703,5.333]
[1645194501677,1.49811791,93.792,93.711,106.6]
[1645194501876,1.49811791,93.792,93.71,16.0099]
[1645194501877,1.49811791,93.809,93.713,106.6]
[1645194502080,1.49811791,93.807,93.714,5.332]
[1645194502278,1.49811791,93.802,93.713,5.331]
[1645194502477,1.49811791,93.802,93.714,2.6293831]
[1645194502677,6.05075998,93.828,93.703,5.332]
[1645194502678,1.49811791,93.8,93.703,5.332]
[1645194502876,1.49811791,93.8,93.72,16.0085]
[1645194503078,31.4073,93.81,93.721,5.332]
[1645194503281,16.0073,93.81,93.721,7.9613831]
[1645194503479,16.0073,93.81,93.722,2.6293831]
[1645194503681,16.0073,93.81,93.723,46.43629953]
[1645194504080,106.6,93.809,93.724,2.6293831]
[1645194504279,1.49811791,93.806,93.724,2.6293831]
[1645194504481,1.49811791,93.806,93.73,16.0064]
[1645194504680,1.49811791,93.806,93.723,41.10429953]
[1645194504979,1.49811791,93.801,93.723,41.10429953]
[1645194505186,1.49811791,93.8,93.723,41.10429953]
[1645194505380,1.49811791,93.801,93.731,170.25]
[1645194505578,1.49811791,93.801,93.724,7.9613831]
[1645194505579,1.49811791,93.817,93.733,170.25]
[1645194505779,1.49811791,93.825,93.734,5.331]
[1645194505982,1.49811791,93.825,93.734,7.9603831]
[1645194506179,1.49811791,93.826,93.734,7.9603831]
[1645194506379,52.83014775,93.824,93.75,16.0017]
[1645194506579,1.49811791,93.825,93.751,46.6917561]
[1645194506781,53.21,93.928,93.751,46.6917561]
[1645194506782,1.49811791,93.827,93.752,170.25]
[1645194507079,1.49811791,93.838,93.754,106.6]
[1645194507279,1.49811791,93.839,93.755,5.33]
[1645194507480,1.49811791,93.841,93.755,5.33]
[1645194507681,53.75529671,93.84,93.756,2.6293831]
[1645194507881,53.75529671,93.84,93.757,5.33]
[1645194508281,1.49811791,93.843,93.758,2.6293831]
[1645194508485,1.49811791,93.844,93.761,106.6]
[1645194508682,1.49811791,93.844,93.764,106.6]
[1645194508885,1.49811791,93.844,93.763,63.65]
[1645194508886,1.49811791,93.85,93.779,63.65]
[1645194509087,1.49811791,93.859,93.784,106.6]
[1645194509287,1.49811791,93.863,93.786,49.91172039]
[1645194509488,1.49811791,93.864,93.787,5.329]